Cogmind - Beta 14 @@@ ROGUE MODE // 2024.09.30 @ 21:34:52 Player: Cazador Result: Destroyed by Y-45 Defender with Heavy Assault Rifle Performance ------------- Evolutions (1) 500 Regions Visited (3) 600 Robots Destroyed (12) 60 Value Destroyed (242) 242 Prototype IDs (1) 20 Alien Tech Used (0) 0 Bonus (0) 0 TOTAL SCORE: 1422 Bonus ------- None Cogmind --------- Core Integrity 0/400 Matter 300/300 Energy 100/100 System Corruption 0% Temperature Cool (0) Movement Core (100) Ox1 Location -9/Materials Parts ------- > --- POWER (1) -------- (None) > --- PROPULSION (2) --- (None) > --- UTILITY (3) ------ Small Storage Unit > --- WEAPON (3) ------- (None) > --- INVENTORY (8) ---- (None) Peak State ------------ > --- POWER ------------ Light Ion Engine > --- PROPULSION ------- Aluminum Leg Aluminum Leg > --- UTILITY ---------- Small Storage Unit Experimental Sensor Array > --- WEAPON ----------- EM Pulse Gun Assault Rifle Datajack > --- INVENTORY -------- (None) [Rating: 16] Favorites ----------- Power Light Ion Engine Engine Light Ion Engine Propulsion Light Treads Treads Light Treads Leg Aluminum Leg Utility Small Storage Unit Device Sensor Array Storage Small Storage Unit Weapon EM Pulse Gun Energy Gun EM Pulse Gun Ballistic Gun Assault Rifle Special Melee Weapon Datajack Build | -11 -10 -10 -9 ------- Run | Yrd Mat Min Mat Slots Evolved 2 | . . . 2 Power . | . . . . Propulsion . | . . . . Utility 1 | . . . 1 Weapon 1 | . . . 1 Parts Attached 16 | 6 2 3 5 Power 3 | 1 1 . 1 Engine 3 | 1 1 . 1 Core . | . . . . Reactor . | . . . . Propulsion 6 | 2 . 3 1 Treads 4 | 2 . 1 1 Leg 2 | . . 2 . Wheel . | . . . . Hover . | . . . . Flight . | . . . . Utility 3 | 1 1 . 1 Device 2 | . 1 . 1 Storage 1 | 1 . . . Processor . | . . . . Hackware . | . . . . Protection . | . . . . Artifact . | . . . . Weapon 4 | 2 . . 2 Energy Gun 2 | 1 . . 1 Energy Cannon . | . . . . Ballistic Gun 1 | 1 . . . Ballistic Cannon . | . . . . Launcher . | . . . . Special Weapon . | . . . . Impact Weapon . | . . . . Slashing Weapon . | . . . . Piercing Weapon . | . . . . Special Melee Weapon 1 | . . . 1 Unidentified Prototypes 1 | . . . 1 Parts Lost 10 | . . 1 9 Power 2 | . . 1 1 Propulsion 3 | . . . 3 Utility 1 | . . . 1 Weapon 4 | . . . 4 Highest Loss Streak 6 | . . 1 6 To Critical Strikes . | . . . . Average Slot Usage (%) 81 | . 94 97 68 Engine 9 | . 14 12 5 Treads 13 | . 28 26 . Leg 10 | . . . 19 Device 10 | . 8 14 9 Storage 12 | . 14 14 11 Energy Gun 11 | . 14 14 9 Ballistic Gun 11 | . 14 14 9 Special Melee Weapon 1 | . . . 3 Peak Build Rating 16 | 6 7 8 16 Average Rating 8 | 5 6 7 12 On Entrance 4 | . 6 7 6 Naked Turns . | . . . . Heaviest Build 15 | 14 15 13 14 Greatest Support 40 | 40 40 40 23 Greatest Overweight (x) 1 | . . . 1 Average Overweight (x) . | . . . . Largest Inventory Capacity 8 | 8 8 8 8 Average Capacity 7 | 7 8 8 8 Most Carried 5 | 3 3 5 1 Average Carried 1 | 2 2 2 . Final Capacity 8 | 8 8 8 8 Final Carried 3 | 3 2 1 . Class Distribution -------------------- 100% | Mutant Dominant Class ---------------- Mutant | -10/Materials Mutant | -10/Mines Mutant | -9/Materials Resources | -11 -10 -10 -9 ----------- Run | Yrd Mat Min Mat Matter Collected 415 | 218 89 19 89 Remotely . | . . . . Salvage Created 283 | . 49 103 131 Parts 21 | . 4 6 11 Haulers Intercepted . | . . . . Recyclers Shooed 1 | . . 1 . Parts Field Recycled . | . . . . Retrieved Matter . | . . . . Parts Self-Destructed . | . . . . Prevented . | . . . . Kills | -11 -10 -10 -9 ------- Run | Yrd Mat Min Mat Combat Hostiles Destroyed 7 | . 3 2 2 Guns 6 | . 3 2 1 Classes Destroyed 6 | . 1 2 3 Worker 1 | . . 1 . Tunneler 1 | . . . 1 Mechanic 1 | . . . 1 Watcher 2 | . . . 2 Swarmer 3 | . 3 . . Grunt 4 | . . 2 2 Best Kill Streak 3 | . 3 3 2 Combat Bots Only 3 | . 3 1 1 Max Kills in Single Turn 2 | . 1 1 2 Gunslinging . | . . . . Exploded . | . . . . Melee . | . . . . Uniques/NPCs Destroyed . | . . . . Combat | -11 -10 -10 -9 -------- Run | Yrd Mat Min Mat Hostile Shots Fired 136 | . 19 12 105 Missed 43 | . 4 2 37 Damage Taken 1332 | . 188 175 969 Core 449 | . 34 13 402 Absorbed by Shields . | . . . . Core Remaining (%) 90 | 100 . 81 . Volleys Fired 62 | . 9 8 45 Largest 2 | . 2 2 2 Hottest 60 | . 60 60 60 Shots Fired 93 | . 18 16 59 Gun 93 | . 18 16 59 Cannon . | . . . . Launcher . | . . . . Special . | . . . . Kinetic 40 | . 9 8 23 Thermal 25 | . . . 25 Explosive . | . . . . Electromagnetic 28 | . 9 8 11 Robot Hit Streak 11 | . 6 4 11 Robot Miss Streak 4 | . 3 2 4 Penetration Max . | . . . . Secondary Targets 2 | . 2 . . Max Gunslinging Chain 1 | . 1 . . Shots Hit Robots 71 | . 9 11 51 Core Hits 25 | . 3 7 15 Critical Kills . | . . . . Critical Parts Destroyed . | . . . . Critical Strikes . | . . . . Melee Attacks 10 | . . . 10 Impact . | . . . . Slashing . | . . . . Piercing . | . . . . Sneak Attacks 6 | . . . 6 Combat Hostiles . | . . . . Follow-up Attacks . | . . . . Damage Inflicted 936 | . 115 245 576 Guns 768 | . 115 138 515 Cannons . | . . . . Explosions 159 | . . 107 52 Melee . | . . . . Ramming 9 | . . . 9 Kinetic 300 | . 58 63 179 Thermal 404 | . . 107 297 Explosive . | . . . . Electromagnetic 223 | . 57 75 91 Impact . | . . . . Slashing . | . . . . Piercing . | . . . . Highest Corruption 1 | . 1 1 . Average Corruption 1 | . 1 1 . Corruption Purged . | . . . . Corruption Blocked . | . . . . Effects 4 | . 1 3 . Energy Discharges 1 | . . 1 . Data Loss (minor) 2 | . 1 1 . Data Loss (major) 1 | . . 1 . Overload Shots . | . . . . Overflow Damage . | . . . . Projectiles . | . . . . Explosions . | . . . . Melee . | . . . . Knockbacks . | . . . . Impact . | . . . . Kinetic . | . . . . Secondary . | . . . . Self-Inflicted Damage 69 | . . 33 36 Shots 2 | . . 1 1 Rammed 14 | . . . 14 Targets Rammed 15 | . . . 15 Kicked 1 | . . . 1 Crushed . | . . . . Highest Temperature 56 | . 12 56 41 Average Temperature 22 | . 9 33 14 Received Heat Transfer 510 | . 18 87 405 Siege Activations . | . . . . Robots Corrupted . | . . . . Combat Hostiles . | . . . . Parts Fried 1 | . . . 1 Impact Corruptions . | . . . . Robots Melted 1 | . . . 1 Combat Hostiles 1 | . . . 1 Parts Melted . | . . . . Heat Transferred 700 | . . 100 600 Parts Sabotaged . | . . . . Parts Stolen . | . . . . Parts Stripped . | . . . . Power Chain Reactions 2 | . . 1 1 Alert | -11 -10 -10 -9 ------- Run | Yrd Mat Min Mat Peak Influence 132 | . 115 95 132 Initial 44 | . . 44 37 Average 51 | . 93 49 57 Maximum Alert Level . | . . . . Low Security (%) 100 | 100 100 100 100 Level 1 . | . . . . Level 2 . | . . . . Level 3 . | . . . . Level 4 . | . . . . Level 5 . | . . . . High Security . | . . . . Max Security . | . . . . Squads Dispatched 4 | . 3 . 1 Investigation 1 | . 1 . . Extermination . | . . . . Reinforcement 3 | . 2 . 1 Assault . | . . . . Garrison . | . . . . Intercept . | . . . . Searches Triggered . | . . . . Construction Impeded . | . . . . Haulers Reinforced . | . . . . Active Scanning Responses . | . . . . Cargo Convoy Interrupts . | . . . . Stealth | -11 -10 -10 -9 --------- Run | Yrd Mat Min Mat Distress Signals 2 | . 2 . . Communications Jammed . | . . . . Distress Signals . | . . . . Times Spotted 25 | . 10 2 13 Peak Tracking Total 4 | . 4 2 4 Tactical Retreats 3 | . . . 3 Traps | -11 -10 -10 -9 ------- Run | Yrd Mat Min Mat Traps Triggered . | . . . . Indirectly . | . . . . Trap Hack Attempts . | . . . . Triggered . | . . . . Disarmed . | . . . . Reprogrammed . | . . . . Reused . | . . . . Traps Extracted . | . . . . Installed . | . . . . Triggered . | . . . . Machines | -11 -10 -10 -9 ---------- Run | Yrd Mat Min Mat Machines Disabled 1 | . 1 . . Max in Single Turn 1 | . 1 . . Machines Repaired . | . . . . Machines Dismantled . | . . . . Machines Sabotaged . | . . . . Overloaded Fab Kills . | . . . . Hacking | -11 -10 -10 -9 --------- Run | Yrd Mat Min Mat Machines Accessed . | . . . . Terminals . | . . . . Fabricators . | . . . . Repair Stations . | . . . . Recycling Units . | . . . . Scanalyzers . | . . . . Garrison Access . | . . . . Total Hacks . | . . . . Successful . | . . . . Failed . | . . . . Catastrophic . | . . . . Database Lockouts . | . . . . Manual . | . . . . Terminals . | . . . . Fabricators . | . . . . Repair Stations . | . . . . Recycling Units . | . . . . Scanalyzers . | . . . . Garrison Access . | . . . . Terminal Hacks . | . . . . Fabricator Hacks . | . . . . Repair Station Hacks . | . . . . Recycling Unit Hacks . | . . . . Scanalyzer . | . . . . Garrison Access Hacks . | . . . . Unauthorized Hacks . | . . . . Terminals . | . . . . Fabricators . | . . . . Repair Stations . | . . . . Recycling Units . | . . . . Scanalyzers . | . . . . Garrison Access . | . . . . Data Cores Recovered . | . . . . Used . | . . . . Hacking Detections . | . . . . Full Trace Events . | . . . . Feedback Events . | . . . . Feedback Blocked . | . . . . Robot Schematics Acquired . | . . . . Robots Built . | . . . . Authchips . | . . . . Time . | . . . . Total Robot Build Rating . | . . . . Part Schematics Acquired . | . . . . Parts Built . | . . . . Authchips . | . . . . Time . | . . . . Total Part Build Rating . | . . . . Parts Repaired . | . . . . Time . | . . . . Parts Recycled . | . . . . Recycled Matter . | . . . . Retrieved Matter . | . . . . Retrieved Components . | . . . . Parts Scanalyzed . | . . . . Part Schematics Acquired . | . . . . Parts Damaged . | . . . . Bothacking | -11 -10 -10 -9 ------------ Run | Yrd Mat Min Mat Used RIF Installer . | . . . . Robots Hacked 5 | . . . 5 Non-combat 4 | . . . 4 Combat 1 | . . . 1 Robot Hacks Applied 7 | . . . 7 parse_system 4 | . . . 4 no_distress 3 | . . . 3 Relay Couplers Released . | . . . . Fabnet Peak Effective % . | . . . . Robots Rewired . | . . . . Allies Hacked . | . . . . Hacks Repelled . | . . . . Allies | -11 -10 -10 -9 -------- Run | Yrd Mat Min Mat Total Allies . | . . . . Largest Group . | . . . . Highest-Rated Group . | . . . . Highest-Rated Ally . | . . . . Total Orders . | . . . . Ally Attacks . | . . . . Total Damage . | . . . . Kills . | . . . . Allies Corrupted . | . . . . Allies Melted . | . . . . Intel | -11 -10 -10 -9 ------- Run | Yrd Mat Min Mat Robot Analysis Total . | . . . . Derelict Logs Recovered . | . . . . Drone Launches . | . . . . Drone Recoveries . | . . . . Exploration | -11 -10 -10 -9 ------------- Run | Yrd Mat Min Mat Turns Passed 1208 | 227 207 250 524 Spaces Moved 638 | 137 105 135 261 Core 10 | 6 . . 4 Treads 373 | 131 105 133 4 Legs 255 | . . 2 253 Wheels . | . . . . Hover . | . . . . Flight . | . . . . Fastest Speed 50 | 50 160 120 100 Average Speed 142 | 155 160 159 120 Slowest Speed 160 | 160 160 160 160 Overloaded Moves . | . . . . Propulsion Burnouts . | . . . . Robots Hopped . | . . . . Cave-ins Triggered . | . . . . Exploration Rate (%) 23 | 8 28 34 24 Regions Visited 3 Branch Regions 1 Pre-discovered Areas . | . . . . Known Exits Taken . | . . . . Unknown Exits Taken 3 | 1 1 1 . Scrap Searched . | . . . . Spaces Dug . | . . . . Terrain Destroyed 9 | . . 8 1 Melee . | . . . . Projectile . | . . . . AOE 9 | . . 8 1 Terrain Rammed . | . . . . Walls Destroyed . | . . . . Machines Disabled . | . . . . Actions | -11 -10 -10 -9 --------- Run | Yrd Mat Min Mat Total 831 | 149 126 156 400 Wait 80 | 4 10 5 61 Move 635 | 136 104 134 261 Hop . | . . . . Pick Up 5 | 3 . 1 1 Fast Attach 10 | 6 1 . 3 Attach 5 | . . 3 2 Detach 4 | . . 3 1 Swap 1 | . 1 . . Drop 4 | . 1 2 1 Fire 62 | . 9 8 45 Melee 10 | . . . 10 Ram 4 | . . . 4 Kick 1 | . . . 1 Crush 10 | . . . 10 Escape Stasis . | . . . . Rewire . | . . . . Trap . | . . . . Miscellaneous . | . . . . Route ------- -11/Scrapyard -10/Materials -10/Mines -9/Materials History --------- Turn | Location | Event 11 | -11/Scrapyard | Discovered new exit (range 15) 228 | -11/Scrapyard | Entered Materials 305 | -10/Materials | Build established: Mutant 335 | -10/Materials | Met 8R-AWN 387 | -10/Materials | Discovered new exit (range 15) 435 | -10/Materials | Entered Mines 437 | -10/Mines | Followed 8R-AWN into the Mines 552 | -10/Mines | Discovered new exit (range 4) 575 | -10/Mines | Found a damaged Exp. Sensor Array with a note attached 581 | -10/Mines | Found Prototype Device 685 | -10/Mines | Entered Materials 685 | -9/Materials | Evolved 2 slots: Utility x1, Weapon x1 729 | -9/Materials | Identified Exp. Sensor Array 1162 | -9/Materials | Core integrity fell below 50% 1192 | -9/Materials | Core integrity fell below 20% 1195 | -9/Materials | Lost 6 parts (1p2n1u2w) 1209 | -9/Materials | Destroyed by Y-45 Defender with Heavy Assault Rifle Last Messages --------------- 01132_ Critical hit (Burn: +37). 01139_ Lgt. Ion Engine destroyed. 01140_ Critical hit (Burn: +37). 01149_ G-34 Mercenary overheating. 01151_ Aluminum Leg destroyed. 01152_ G-34 Mercenary heat damages Aluminum Leg. 01153_ G-34 Mercenary overheating. 01157_ G-34 Mercenary heat damages core (-5). [Achievement: It's Just You] 01158_ Aluminum Leg destroyed. 01164_ Sml. Laser destroyed. 01166_ Slammed into Y-45 Defender. 01170_ Destabilizing: Core damaged (-12). 01171_ Acquired 3 matter. 01173_ Slammed into Y-45 Defender. 01175_ Acquired 2 matter. 01175_ Slammed into Y-45 Defender. 01182_ Critical hit (Burn: +37). 01183_ Slammed into Y-45 Defender. 01208_ Imp. Treads destroyed. Map ----- +----------------------------------------------------+ | ?????????????????????########### ## """ """ # | | ????????????????????########### # """ """ # | | ??????????????????? # """ """ # | | ??????????????????? + # | | ??????????????????? # # | | ????????????????????########### # # | | ?????????????????????########### ## # | | ?????????????????????? #?# ############ | | ??????????????????????"""" #?# # ! #?? | | ????????????????????? """" #?# # """ ??? | | ????????????????????# """" ### # """""?#?? | | ????????????????????# + ! + """"" #?? | | ????????????????????# """ ### # """"" #?? | | ????????????????????# R" #?# # """ #?? | | ????????????????????# """ ### # #?? | | ????????????????? # + + #?? | | ????????????????# #####+#### # #?? | | ????????????????# ????# ####a ##+#######?? | | ????????????????# ????# #????? | | ????????????????# ????# #####+##### #????? | | ????????????????# #####+##r## #?# #????? | | ????????????????# # # """" #?# #????? | | ????????????????# # Y t # """" #?# #????? | | ????????????????# # # """" #?# #????? | | ????????????????+ # # ### ##???? | | ????????????????# # @ # ## #???? | | ????????????????# # %Y%% ######### #???? | | ????????????????# # % % #???????# #???? | | ????????????????# # % % #???????## ###### | | ????????????????# ###s#######??####### # # | | ????????????????# % #?????# ^^ # # | | ????????????????# #?????# ^ # # | | ????????????????# % #######^ """ # # | | ????????????????######## """ + # | | ???????????????????????#% """ # # | | ???????????????????????# # # | | ######################## % + # | | ####### ####### # | | ^ ##????# #?????###### | | #?????# #??????????? | | ???# #############+#######?????# #??????????? | | ?????????????????# #????????# #??????????? | | ?????????????????# """ #????????# #??????????? | | ?????????????????# """ #????????# #??????????? | | ?????????????????# """ #????????# #??????????? | | ?????????????????# """ #????????# #??????????? | | ?????????????????# #????????# #??????????? | | ?????????????????########????????#%#??????????? | | ?????????????????????????????????# #??????????? | | ?????????????????????????????????# #??????????? | +----------------------------------------------------+ Best States ------------- Heat Dissipation 28 Energy Generation 10 Energy Capacity 250 Matter Stores 300 Matter Capacity 300 Sight Range 16 Robot Scan Range 20 Terrain Scan Density 10 Evasion (%) 55 Recoil Reduction 2 Item Schematics ----------------- None Robot Schematics ------------------ None Fabricated ------------ Nothing Alien Tech Used ----------------- None Achievements -------------- It's Just You Challenges ------------ None Game ------ Seed LatentShockAutobeam Manual? 0 Play Time 00:13:16 Cumulative 2.4 hours Start 2024.09.30 @ 21:23:10 End 2024.09.30 @ 21:34:52 Sessions 1 Manual Loads 0 Difficulty Rogue Special Mode None Game No. 10 Rogue 10 Adventurer 0 Explorer 0 Win Type - Total 0 Types 0/0/0/0/0/0/0/0/0 Lore% 0 Gallery% 8 Achievement% 7 Wizard Run 0 Options --------- Layout 1 ASCII 0 Keyboard 1 Movement Numpad Keybinds 0 Fullscreen 2 Font 32/SmallcapsGlow Map View 50x35 Zoom Use 0% Tactical HUD 1 Map Filters NONE Filters NONE Steam 1 RUN: 57d93b77-02d1-4c17-8784-a83e38bedac4